[Event "Swiss Youth-ch U14 2023"]
[Site "Olten"]
[Date "2023.05.29"]
[Round "7.6"]
[White "Papaux, Jeremie"]
[Black "Akinkhov, Mikhail"]
[Result "1-0"]
[ECO "D60"]
[WhiteElo "1491"]
[BlackElo "1495"]
[Annotator "NA RC"]
[PlyCount "129"]
[EventDate "2023.05.26"]
[EventType "swiss"]
[EventCountry "SUI"]
[SourceTitle "playchess.com"]
[Source "ChessBase"]
[SourceQuality "1"]
[TimeControl "5400+30"]

1. Nf3 {[%emt 0:00:06]} Nf6 {[%emt 0:00:31]} 2. d4 {[%emt 0:00:10]} d5 {[%emt 0:00:04]} 3. c4 {[%emt 0:00:14]} c6 {[%emt 0:00:11]} 4. Nc3 {[%emt 0:00:09]} e6 {[%emt 0:00:12]} 5. Bg5 {[%emt 0:00:21]} Be7 {[%emt 0:00:06]} 6. e3 {[%emt 0:00:07]} O-O {[%emt 0:00:08]} 7. Bd3 {[%emt 0:00:15]} Nbd7 {[%emt 0:00:30]} 8. c5 {[%emt 0:01:30]} Re8 {[%emt 0:03:18]} 9. O-O {[%emt 0:02:31]} h6 {[%emt 0:04:11]} 10. Bh4 {[%emt 0:00:09]} Nh5 {[%emt 0:04:15]} 11. Bxe7 {[%emt 0:01:29]} Qxe7 {[%emt 0:00:44]} 12. Nd2 {[%emt 0:01:55]} Nhf6 {[%emt 0:00:56]} 13. f4 {[%emt 0:00:16]} Nh7 {[%emt 0:02:27]} 14. Nf3 {[%emt 0:06:16]} f6 {[%emt 0:02:29]} 15. Bg6 {[%emt 0:03:19]} Rd8 {[%emt 0:01:07]} 16. Qd3 {[%emt 0:11:58]} Nhf8 {[%emt 0:01:03]} 17. Nh4 {[%emt 0:02:45]} f5 {[%emt 0:05:35]} 18. g3 {[%emt 0:00:20]} Nxg6 {[%emt 0:05:30]} 19. Nxg6 {[%emt 0:00:10]} Qf6 {[%emt 0:01:21]} 20. Ne5 {[%emt 0:02:29]} Nxe5 {[%emt 0:00:29]} 21. fxe5 {[%emt 0:02:52]} Qe7 {[%emt 0:03:03]} 22. b4 {[%emt 0:02:00]} g5 {[%emt 0:03:39]} 23. Rf2 {[%emt 0:06:11]} Bd7 {[%emt 0:00:55]} 24. Ne2 {[%emt 0:03:04]} Rf8 {[%emt 0:00:50]} 25. Raf1 {[%emt 0:00:35]} Rf7 {[%emt 0:01:31]} 26. g4 {[%emt 0:00:52]} Raf8 {[%emt 0:00:34]} 27. Ng3 {[%emt 0:00:36]} Kg7 {[%emt 0:08:40]} 28. gxf5 {[%emt 0:02:14]} exf5 {[%emt 0:00:26]} 29. Nxf5+ {[%emt 0:00:11]} Bxf5 {[%emt 0:01:03]} 30. Rxf5 {[%emt 0:00:08]} Qe6 {[%emt 0:02:01]} 31. Rxf7+ {[%emt 0:00:30]} Rxf7 {[%emt 0:48:11]} 32. Rxf7+ {[%emt 0:00:07]} Qxf7 {[%emt 0:00:00]} 33. Qf1 {[%emt 0:00:12]} Qe6 {[%emt 0:00:00]} 34. Qf3 {[%emt 0:02:46]} Kg8 {[%emt 0:00:00]} 35. Kg2 {[%emt 0:05:24]} Kg7 {[%emt 0:00:00]} 36. Kg3 {[%emt 0:01:23]} a6 {[%emt 0:00:00]} 37. Qg4 {[%emt 0:02:48]} Qf7 {[%emt 0:00:00]} 38. Kg2 {[%emt 0:00:28]} Kg6 {[%emt 0:00:00]} 39. h4 {[%emt 0:00:47]} Qe7 {[%emt 0:00:00]} 40. h5+ {[%emt 0:05:28]} Kg7 {[%emt 0:00:00]} 41. Kg3 {[%emt 0:01:33]} Qf7 {[%emt 0:00:00]} 42. Qf3 {[%emt 0:00:33]} Qe6 {[%emt 0:00:00]} 43. a3 {[%emt 0:00:59]} Kg8 {[%emt 0:00:00]} 44. Qg4 {[%emt 0:00:44]} Qf7 {[%emt 0:00:00]} 45. Qc8+ {[%emt 0:00:47]} Kg7 {[%emt 0:00:00]} 46. Kg4 {[%emt 0:02:00]} Qe7 {[%emt 0:00:00]} 47. Qf5 {[%emt 0:00:38]} Qf7 {[%emt 0:00:00]} 48. Qxf7+ {[%emt 0:01:00]} Kxf7 {[%emt 0:00:00]} 49. Kf5 {[%emt 0:00:07]} Ke7 {[%emt 0:00:00]} 50. e4 {[%emt 0:00:39]} dxe4 {[%emt 0:01:27]} 51. Kxe4 {[%emt 0:00:05]} Ke6 {[%emt 0:01:34]} 52. Ke3 {[%emt 0:00:49]} Kd5 {[%emt 0:01:03]} 53. Kf3 {[%emt 0:00:16]} Ke6 {[%emt 0:00:21]} 54. Ke4 {[%emt 0:00:07]} Ke7 {[%emt 0:00:28]} 55. Kf5 {[%emt 0:00:24]} Kd8 {[%emt 0:00:48]} 56. a4 {[%emt 0:00:29]} Ke7 {[%emt 0:00:49]} 57. e6 {[%emt 0:09:20]} Ke8 {[%emt 0:02:02]} 58. b5 {[%emt 0:04:37]} axb5 {[%emt 0:00:11]} 59. axb5 {[%emt 0:00:06]} cxb5 {[%emt 0:01:53]} 60. d5 {[%emt 0:00:09]} b4 {[%emt 0:00:03]} 61. c6 {[%emt 0:00:29]} bxc6 {[%emt 0:00:08]} 62. dxc6 {[%emt 0:00:10]} Kd8 {[%emt 0:00:15]} 63. Kf6 {[%emt 0:00:12]} b3 {[%emt 0:02:05]} 64. e7+ {[%emt 0:00:06]} Kc7 {[%emt 0:00:30]} 65. e8=Q {[%emt 0:00:19]} 1-0

[Event "Swiss Youth-ch U14 2023"]
[Site "Olten"]
[Date "2023.05.29"]
[Round "7.7"]
[White "Van Aepelen, Nikolai"]
[Black "Paholok, Adam"]
[Result "1-0"]
[ECO "E94"]
[WhiteElo "1623"]
[BlackElo "1556"]
[Annotator "NA RC"]
[PlyCount "97"]
[EventDate "2023.05.26"]
[EventType "swiss"]
[EventCountry "SUI"]
[SourceTitle "playchess.com"]
[Source "ChessBase"]
[SourceQuality "1"]
[TimeControl "5400+30"]

1. d4 {[%emt 0:00:03]} Nf6 {[%emt 0:11:11]} 2. c4 {[%emt 0:00:07]} g6 {[%emt 0:00:24]} 3. Nc3 {[%emt 0:00:09]} Bg7 {[%emt 0:00:04]} 4. e4 {[%emt 0:00:11]} d6 {[%emt 0:00:02]} 5. Nf3 {[%emt 0:00:07]} O-O {[%emt 0:00:05]} 6. Be2 {[%emt 0:00:08]} e5 {[%emt 0:02:09]} 7. O-O {[%emt 0:00:08]} exd4 {[%emt 0:00:09]} 8. Nxd4 {[%emt 0:00:19]} Nbd7 {[%emt 0:03:10]} 9. Be3 {[%emt 0:03:29]} Nc5 {[%emt 0:00:38]} 10. Qc2 {[%emt 0:02:42]} Re8 {[%emt 0:01:40]} 11. f3 {[%emt 0:00:27]} Ne6 {[%emt 0:02:46]} 12. Rfd1 {[%emt 0:01:40]} Nh5 {[%emt 0:09:56]} 13. Nxe6 {[%emt 0:08:02]} Bxe6 {[%emt 0:00:13]} 14. c5 {[%emt 1:19:58]} Be5 {[%emt 0:15:13]} 15. cxd6 {[%emt 0:00:00]} Qh4 {[%emt 0:02:11]} 16. f4 {[%emt 0:00:00]} Nxf4 {[%emt 0:01:55]} 17. Bf3 {[%emt 0:00:00]} Bxd6 {[%emt 0:02:36]} 18. g3 {[%emt 0:00:00]} Nh3+ {[%emt 0:01:18]} 19. Kg2 {[%emt 0:00:00]} Qe7 {[%emt 0:01:07]} 20. Qc1 {[%emt 0:00:00]} Bc5 {[%emt 0:09:17]} 21. Nd5 {[%emt 0:00:00]} Bxd5 {[%emt 0:09:25]} 22. Bxc5 {[%emt 0:00:00]} Qf6 {[%emt 0:04:15]} 23. Rxd5 {[%emt 0:00:00]} c6 {[%emt 0:00:39]} 24. Rd6 {[%emt 0:00:00]} Qe5 {[%emt 0:02:01]} 25. Kxh3 {[%emt 0:00:00]} b6 {[%emt 0:00:09]} 26. Ba3 {[%emt 0:00:00]} c5 {[%emt 0:00:16]} 27. Rd5 {[%emt 0:00:00]} Qe6+ {[%emt 0:00:39]} 28. Kg2 {[%emt 0:00:00]} Rac8 {[%emt 0:00:31]} 29. b3 {[%emt 0:00:00]} Rcd8 {[%emt 0:21:01]} 30. Bb2 {[%emt 0:00:00]} Rxd5 {[%emt 0:00:00]} 31. exd5 {[%emt 0:00:00]} Qf5 {[%emt 0:00:00]} 32. Qc3 {[%emt 0:00:00]} f6 {[%emt 0:00:00]} 33. Qxf6 {[%emt 0:00:00]} Qc2+ {[%emt 0:00:00]} 34. Kh3 {[%emt 0:00:00]} Qf5+ {[%emt 0:00:00]} 35. Qxf5 {[%emt 0:00:00]} gxf5 {[%emt 0:00:00]} 36. d6 {[%emt 0:00:00]} Rd8 {[%emt 0:00:00]} 37. Rd1 {[%emt 0:00:00]} Kf8 {[%emt 0:00:00]} 38. Bf6 {[%emt 0:00:00]} Rd7 {[%emt 0:00:00]} 39. Be7+ {[%emt 0:00:00]} Kf7 {[%emt 0:00:00]} 40. Bd5+ {[%emt 0:00:00]} Kg7 {[%emt 0:00:00]} 41. Be6 {[%emt 0:00:00]} f4 {[%emt 0:00:00]} 42. Bxd7 {[%emt 0:00:00]} f3 {[%emt 0:00:00]} 43. Be6 {[%emt 0:00:00]} f2 {[%emt 0:00:00]} 44. d7 {[%emt 0:00:00]} f1=Q+ {[%emt 0:00:00]} 45. Rxf1 {[%emt 0:00:00]} h5 {[%emt 0:00:00]} 46. Bf8+ {[%emt 0:00:00]} Kg6 {[%emt 0:00:00]} 47. Bf7+ {[%emt 0:00:00]} Kh7 {[%emt 0:00:00]} 48. d8=Q {[%emt 0:00:00]} h4 {[%emt 0:00:00]} 49. Qxh4# {[%emt 0:00:00]} 1-0

[Event "Swiss Youth-ch U14 2023"]
[Site "Olten"]
[Date "2023.05.29"]
[Round "7.8"]
[White "Breyer, Philippe"]
[Black "Gafner, Lancelot"]
[Result "1-0"]
[ECO "C56"]
[WhiteElo "1766"]
[BlackElo "1641"]
[Annotator "NA RC"]
[PlyCount "49"]
[EventDate "2023.05.26"]
[EventType "swiss"]
[EventCountry "SUI"]
[SourceTitle "playchess.com"]
[Source "ChessBase"]
[SourceQuality "1"]
[TimeControl "5400+30"]

1. e4 {[%emt 0:00:03]} e5 {[%emt 0:00:05]} 2. Nf3 {[%emt 0:00:02]} Nc6 {[%emt 0:00:07]} 3. Bc4 {[%emt 0:00:03]} Bc5 {[%emt 0:00:06]} 4. c3 {[%emt 0:00:08]} Nf6 {[%emt 0:00:08]} 5. d4 {[%emt 0:00:06]} exd4 {[%emt 0:00:07]} 6. O-O {[%emt 0:00:07]} Bb6 {[%emt 0:03:36]} 7. e5 {[%emt 0:01:03]} d5 {[%emt 0:01:05]} 8. exf6 {[%emt 0:06:45]} dxc4 {[%emt 0:00:24]} 9. fxg7 {[%emt 0:07:42]} Rg8 {[%emt 0:00:10]} 10. Re1+ {[%emt 0:00:55]} Be6 {[%emt 0:03:06]} 11. Bg5 {[%emt 0:29:36]} Qd5 {[%emt 0:07:00]} 12. cxd4 {[%emt 0:04:15]} Nxd4 {[%emt 0:17:25]} 13. Nxd4 {[%emt 0:09:16]} Qxd4 {[%emt 0:04:33]} 14. Qf3 {[%emt 0:02:56]} Qxb2 {[%emt 0:08:19]} 15. Rxe6+ {[%emt 0:18:52]} fxe6 {[%emt 0:14:25]} 16. Qh5+ {[%emt 0:00:04]} Kd7 {[%emt 0:00:13]} 17. Qf7+ {[%emt 0:00:05]} Kd6 {[%emt 0:01:33]} 18. Be7+ {[%emt 0:10:20]} Kc6 {[%emt 0:04:16]} 19. Qxe6+ {[%emt 0:01:09]} Kb5 {[%emt 0:01:24]} 20. Na3+ {[%emt 0:04:46]} Ka6 {[%emt 0:02:59]} 21. Qxc4+ {[%emt 0:00:18]} Ka5 {[%emt 0:00:21]} 22. Qd5+ {[%emt 0:00:34]} Ka4 {[%emt 0:01:38]} 23. Qd1+ {[%emt 0:00:09]} Ka5 {[%emt 0:00:21]} 24. Nc4+ {[%emt 0:00:02]} Ka6 {[%emt 0:29:09]} 25. Qa4+ {[%emt 0:00:14]} 1-0